{"text_format":"1","workbook":"xlsx","n_sheets":2,"sheets":["Bordro Girişi","makbuzlar_şablon"],"not_rendered":{"charts":0,"images":0,"macros":1,"external_links":0,"defined_names":7,"comments":0,"pivot_tables":0},"unopened":[],"bounds":{"document_bytes":16777216,"sheet_cells":100000,"rows_first":2000,"rows_last":500,"rows_between":2000,"halvings":0,"cell_chars":16384,"cell_head_chars":4096},"cells_cut":0,"cells_raw":0,"read":"whole","date_system":"1900"}

{"sheet":"Bordro Girişi","index":0,"n_rows":13,"n_cols":24,"rows_kept":13,"cut":false,"hidden":false,"merged":[]}
[null,"Bordro Hesaplayıcısı",null,null,null,null,null,null,null,null,"DÖNEM SONU:",41372,null,"ŞİRKET ADI:",null,"GÜZEL İŞLER"]
[]
[null,"Kimlik","Çalışan Adı","Normal Çalıştığı Saatler","Tatil Süresi (Saat)","Hastalık\nSüresi (Saat)","Fazla Mesai Saatleri","Fazla Mesai Ücreti","Brüt\nMaaş","Vergiler ve Kesintiler","Diğer\nKesintiler","Net Maaş"," ","Saat Ücreti","Vergi\nDurumu","Federal\nÖdenek","Eyalet\nVergisi","Federal\nGelir Vergisi","Sosyal Güvenlik\nVergisi","Sağlık\nVergisi","Toplam Vergi Stopajları","Sigorta Kesintisi","Diğer Düzenli Kesinti","Toplam Düzenli\nKesintiler"]
[null,1001,"Tamer Salah",50,5,1,null,null,{"$f":"SUM(Çalışanlar[[#This Row],[Normal Çalıştığı Saatler]:[Hastalık\nSüresi (Saat)]])*Çalışanlar[[#This Row],[Saat Ücreti]]+Çalışanlar[[#This Row],[Fazla Mesai Saatleri]]*Çalışanlar[[#This Row],[Fazla Mesai Ücreti]]","v":560},{"$f":"Çalışanlar[[#This Row],[Brüt\nMaaş]]*Çalışanlar[[#This Row],[Toplam Vergi Stopajları]] + Çalışanlar[[#This Row],[Toplam Düzenli\nKesintiler]]","v":273.08000000000004},20,{"$f":"Çalışanlar[[#This Row],[Brüt\nMaaş]]-Çalışanlar[[#This Row],[Vergiler ve Kesintiler]]-Çalışanlar[[#This Row],[Diğer\nKesintiler]]","v":266.91999999999996},null,10,1,4,2.3E-2,0.28000000000000003,6.3E-2,1.4500000000000001E-2,{"$f":"SUM(Çalışanlar[[#This Row],[Eyalet\nVergisi]:[Sağlık\nVergisi]])","v":0.38050000000000006},20,40,{"$f":"SUM(Çalışanlar[[#This Row],[Sigorta Kesintisi]:[Diğer Düzenli Kesinti]])","v":60}]
[null,1002,"Haluk Kocak",40,null,null,null,null,{"$f":"SUM(Çalışanlar[[#This Row],[Normal Çalıştığı Saatler]:[Hastalık\nSüresi (Saat)]])*Çalışanlar[[#This Row],[Saat Ücreti]]+Çalışanlar[[#This Row],[Fazla Mesai Saatleri]]*Çalışanlar[[#This Row],[Fazla Mesai Ücreti]]","v":320},{"$f":"Çalışanlar[[#This Row],[Brüt\nMaaş]]*Çalışanlar[[#This Row],[Toplam Vergi Stopajları]] + Çalışanlar[[#This Row],[Toplam Düzenli\nKesintiler]]","v":131.76000000000002},null,{"$f":"Çalışanlar[[#This Row],[Brüt\nMaaş]]-Çalışanlar[[#This Row],[Vergiler ve Kesintiler]]-Çalışanlar[[#This Row],[Diğer\nKesintiler]]","v":188.23999999999998},null,8,1,1,2.3E-2,0.28000000000000003,6.3E-2,1.4500000000000001E-2,{"$f":"SUM(Çalışanlar[[#This Row],[Eyalet\nVergisi]:[Sağlık\nVergisi]])","v":0.38050000000000006},0,10,{"$f":"SUM(Çalışanlar[[#This Row],[Sigorta Kesintisi]:[Diğer Düzenli Kesinti]])","v":10}]
[null,1003,"Göktuğ Oğuz",35,3,null,null,null,{"$f":"SUM(Çalışanlar[[#This Row],[Normal Çalıştığı Saatler]:[Hastalık\nSüresi (Saat)]])*Çalışanlar[[#This Row],[Saat Ücreti]]+Çalışanlar[[#This Row],[Fazla Mesai Saatleri]]*Çalışanlar[[#This Row],[Fazla Mesai Ücreti]]","v":532},{"$f":"Çalışanlar[[#This Row],[Brüt\nMaaş]]*Çalışanlar[[#This Row],[Toplam Vergi Stopajları]] + Çalışanlar[[#This Row],[Toplam Düzenli\nKesintiler]]","v":240.42600000000004},null,{"$f":"Çalışanlar[[#This Row],[Brüt\nMaaş]]-Çalışanlar[[#This Row],[Vergiler ve Kesintiler]]-Çalışanlar[[#This Row],[Diğer\nKesintiler]]","v":291.57399999999996},null,14,1,3,2.3E-2,0.28000000000000003,6.3E-2,1.4500000000000001E-2,{"$f":"SUM(Çalışanlar[[#This Row],[Eyalet\nVergisi]:[Sağlık\nVergisi]])","v":0.38050000000000006},18,20,{"$f":"SUM(Çalışanlar[[#This Row],[Sigorta Kesintisi]:[Diğer Düzenli Kesinti]])","v":38}]
[null,1008,"Mete Göktepe",50,5,1,null,null,{"$f":"SUM(Çalışanlar[[#This Row],[Normal Çalıştığı Saatler]:[Hastalık\nSüresi (Saat)]])*Çalışanlar[[#This Row],[Saat Ücreti]]+Çalışanlar[[#This Row],[Fazla Mesai Saatleri]]*Çalışanlar[[#This Row],[Fazla Mesai Ücreti]]","v":1120},{"$f":"Çalışanlar[[#This Row],[Brüt\nMaaş]]*Çalışanlar[[#This Row],[Toplam Vergi Stopajları]] + Çalışanlar[[#This Row],[Toplam Düzenli\nKesintiler]]","v":441.16000000000008},null,{"$f":"Çalışanlar[[#This Row],[Brüt\nMaaş]]-Çalışanlar[[#This Row],[Vergiler ve Kesintiler]]-Çalışanlar[[#This Row],[Diğer\nKesintiler]]","v":678.83999999999992},null,20,1,0,2.3E-2,0.28000000000000003,6.3E-2,1.4500000000000001E-2,{"$f":"SUM(Çalışanlar[[#This Row],[Eyalet\nVergisi]:[Sağlık\nVergisi]])","v":0.38050000000000006},15,null,{"$f":"SUM(Çalışanlar[[#This Row],[Sigorta Kesintisi]:[Diğer Düzenli Kesinti]])","v":15}]
[null,1011,"Tülin Oktay",40,null,null,2,15,{"$f":"SUM(Çalışanlar[[#This Row],[Normal Çalıştığı Saatler]:[Hastalık\nSüresi (Saat)]])*Çalışanlar[[#This Row],[Saat Ücreti]]+Çalışanlar[[#This Row],[Fazla Mesai Saatleri]]*Çalışanlar[[#This Row],[Fazla Mesai Ücreti]]","v":430},{"$f":"Çalışanlar[[#This Row],[Brüt\nMaaş]]*Çalışanlar[[#This Row],[Toplam Vergi Stopajları]] + Çalışanlar[[#This Row],[Toplam Düzenli\nKesintiler]]","v":223.61500000000004},null,{"$f":"Çalışanlar[[#This Row],[Brüt\nMaaş]]-Çalışanlar[[#This Row],[Vergiler ve Kesintiler]]-Çalışanlar[[#This Row],[Diğer\nKesintiler]]","v":206.38499999999996},null,10,1,0,2.3E-2,0.28000000000000003,6.3E-2,1.4500000000000001E-2,{"$f":"SUM(Çalışanlar[[#This Row],[Eyalet\nVergisi]:[Sağlık\nVergisi]])","v":0.38050000000000006},20,40,{"$f":"SUM(Çalışanlar[[#This Row],[Sigorta Kesintisi]:[Diğer Düzenli Kesinti]])","v":60}]
[null,1012,"Barış Çetinok",40,5,1,null,null,{"$f":"SUM(Çalışanlar[[#This Row],[Normal Çalıştığı Saatler]:[Hastalık\nSüresi (Saat)]])*Çalışanlar[[#This Row],[Saat Ücreti]]+Çalışanlar[[#This Row],[Fazla Mesai Saatleri]]*Çalışanlar[[#This Row],[Fazla Mesai Ücreti]]","v":552},{"$f":"Çalışanlar[[#This Row],[Brüt\nMaaş]]*Çalışanlar[[#This Row],[Toplam Vergi Stopajları]] + Çalışanlar[[#This Row],[Toplam Düzenli\nKesintiler]]","v":270.03600000000006},null,{"$f":"Çalışanlar[[#This Row],[Brüt\nMaaş]]-Çalışanlar[[#This Row],[Vergiler ve Kesintiler]]-Çalışanlar[[#This Row],[Diğer\nKesintiler]]","v":281.96399999999994},null,12,1,4,2.3E-2,0.28000000000000003,6.3E-2,1.4500000000000001E-2,{"$f":"SUM(Çalışanlar[[#This Row],[Eyalet\nVergisi]:[Sağlık\nVergisi]])","v":0.38050000000000006},20,40,{"$f":"SUM(Çalışanlar[[#This Row],[Sigorta Kesintisi]:[Diğer Düzenli Kesinti]])","v":60}]
[null,1025,"Sibel Mersin",36,null,2,1,18,{"$f":"SUM(Çalışanlar[[#This Row],[Normal Çalıştığı Saatler]:[Hastalık\nSüresi (Saat)]])*Çalışanlar[[#This Row],[Saat Ücreti]]+Çalışanlar[[#This Row],[Fazla Mesai Saatleri]]*Çalışanlar[[#This Row],[Fazla Mesai Ücreti]]","v":474},{"$f":"Çalışanlar[[#This Row],[Brüt\nMaaş]]*Çalışanlar[[#This Row],[Toplam Vergi Stopajları]] + Çalışanlar[[#This Row],[Toplam Düzenli\nKesintiler]]","v":225.35700000000003},25,{"$f":"Çalışanlar[[#This Row],[Brüt\nMaaş]]-Çalışanlar[[#This Row],[Vergiler ve Kesintiler]]-Çalışanlar[[#This Row],[Diğer\nKesintiler]]","v":223.64299999999997},null,12,1,2,2.3E-2,0.28000000000000003,6.3E-2,1.4500000000000001E-2,{"$f":"SUM(Çalışanlar[[#This Row],[Eyalet\nVergisi]:[Sağlık\nVergisi]])","v":0.38050000000000006},25,20,{"$f":"SUM(Çalışanlar[[#This Row],[Sigorta Kesintisi]:[Diğer Düzenli Kesinti]])","v":45}]
[null,1032,"Ebru Ersan",40,5,1,null,null,{"$f":"SUM(Çalışanlar[[#This Row],[Normal Çalıştığı Saatler]:[Hastalık\nSüresi (Saat)]])*Çalışanlar[[#This Row],[Saat Ücreti]]+Çalışanlar[[#This Row],[Fazla Mesai Saatleri]]*Çalışanlar[[#This Row],[Fazla Mesai Ücreti]]","v":460},{"$f":"Çalışanlar[[#This Row],[Brüt\nMaaş]]*Çalışanlar[[#This Row],[Toplam Vergi Stopajları]] + Çalışanlar[[#This Row],[Toplam Düzenli\nKesintiler]]","v":175.03000000000003},50,{"$f":"Çalışanlar[[#This Row],[Brüt\nMaaş]]-Çalışanlar[[#This Row],[Vergiler ve Kesintiler]]-Çalışanlar[[#This Row],[Diğer\nKesintiler]]","v":234.96999999999997},null,10,1,3,2.3E-2,0.28000000000000003,6.3E-2,1.4500000000000001E-2,{"$f":"SUM(Çalışanlar[[#This Row],[Eyalet\nVergisi]:[Sağlık\nVergisi]])","v":0.38050000000000006},null,null,{"$f":"SUM(Çalışanlar[[#This Row],[Sigorta Kesintisi]:[Diğer Düzenli Kesinti]])","v":0}]
[null,1049,"Kerim Hanif",40,1,null,null,null,{"$f":"SUM(Çalışanlar[[#This Row],[Normal Çalıştığı Saatler]:[Hastalık\nSüresi (Saat)]])*Çalışanlar[[#This Row],[Saat Ücreti]]+Çalışanlar[[#This Row],[Fazla Mesai Saatleri]]*Çalışanlar[[#This Row],[Fazla Mesai Ücreti]]","v":615},{"$f":"Çalışanlar[[#This Row],[Brüt\nMaaş]]*Çalışanlar[[#This Row],[Toplam Vergi Stopajları]] + Çalışanlar[[#This Row],[Toplam Düzenli\nKesintiler]]","v":259.00750000000005},23,{"$f":"Çalışanlar[[#This Row],[Brüt\nMaaş]]-Çalışanlar[[#This Row],[Vergiler ve Kesintiler]]-Çalışanlar[[#This Row],[Diğer\nKesintiler]]","v":332.99249999999995},null,15,1,2,2.3E-2,0.28000000000000003,6.3E-2,1.4500000000000001E-2,{"$f":"SUM(Çalışanlar[[#This Row],[Eyalet\nVergisi]:[Sağlık\nVergisi]])","v":0.38050000000000006},25,null,{"$f":"SUM(Çalışanlar[[#This Row],[Sigorta Kesintisi]:[Diğer Düzenli Kesinti]])","v":25}]
[null,"Toplamlar",{"$f":"SUBTOTAL(103,Çalışanlar[Çalışan Adı])","v":9},{"$f":"SUBTOTAL(109,Çalışanlar[Normal Çalıştığı Saatler])","v":371},{"$f":"SUBTOTAL(109,Çalışanlar[Tatil Süresi (Saat)])","v":24},{"$f":"SUBTOTAL(109,Çalışanlar[Hastalık\nSüresi (Saat)])","v":6},{"$f":"SUBTOTAL(109,Çalışanlar[Fazla Mesai Saatleri])","v":3},null,{"$f":"SUBTOTAL(109,Çalışanlar[Brüt\nMaaş])","v":5063},{"$f":"SUBTOTAL(109,Çalışanlar[Vergiler ve Kesintiler])","v":2239.4715000000001},{"$f":"SUBTOTAL(109,Çalışanlar[Diğer\nKesintiler])","v":118},{"$f":"SUBTOTAL(109,Çalışanlar[Net Maaş])","v":2705.5284999999994},null,null,null,null,null,null,null,null,null,{"$f":"SUBTOTAL(109,Çalışanlar[Sigorta Kesintisi])","v":143},{"$f":"SUBTOTAL(109,Çalışanlar[Diğer Düzenli Kesinti])","v":170},{"$f":"SUBTOTAL(109,Çalışanlar[Toplam Düzenli\nKesintiler])","v":313}]

{"sheet":"makbuzlar_şablon","index":1,"n_rows":47,"n_cols":13,"rows_kept":47,"cut":false,"hidden":true,"merged":[[2,7,2,8],[14,7,14,8],[26,7,26,8],[38,7,38,8],[38,11,38,12],[26,11,26,12],[14,11,14,12],[2,11,2,12],[2,3,2,4],[14,3,14,4],[26,3,26,4],[38,3,38,4],[44,2,44,3],[8,2,8,3],[9,2,9,3],[45,2,45,3],[32,2,32,3],[33,2,33,3],[20,2,20,3],[21,2,21,3]]}
[]
[null,null,{"$f":"ŞirketAdı","v":"GÜZEL İŞLER"}]
[null,null,"DÖNEM",{"$f":"BitişDönemi","v":41372},null,null,"AD",{"$f":"IFERROR(INDEX(Çalışanlar[Çalışan Adı],Makbuz),\"\")","v":"Tamer Salah"},null,null,"ÇALIŞAN KİMLİĞİ",{"$f":"IFERROR(INDEX(Çalışanlar[Kimlik],Makbuz),\"\")","v":1001}]
[null,null,"Vergi Durumu",null,{"$f":"IFERROR(INDEX(Çalışanlar[Vergi\nDurumu],Makbuz),\"\")","v":1},null,"Federal Ödenek (H-4'ten)",null,{"$f":"IFERROR(INDEX(Çalışanlar[Federal\nÖdenek],Makbuz),\"\")","v":4},null,"Çalıştığı Saatler",null,{"$f":"IFERROR(INDEX(Çalışanlar[Normal Çalıştığı Saatler],Makbuz),\"\")","v":50}]
[null,null,"Saat Ücreti",null,{"$f":"IFERROR(INDEX(Çalışanlar[Saat Ücreti],Makbuz),\"\")","v":10},null,"Fazla Mesai Ücreti",null,{"$f":"IFERROR(INDEX(Çalışanlar[Fazla Mesai Ücreti],Makbuz),\"\")","v":0},null,"Hastalık Süresi (Saat)",null,{"$f":"IFERROR(INDEX(Çalışanlar[Hastalık\nSüresi (Saat)],Makbuz),\"\")","v":1}]
[null,null,"Sosyal Güvenlik Vergisi",null,{"$f":"IFERROR(INDEX(Çalışanlar[Sosyal Güvenlik\nVergisi],Makbuz)  *  INDEX(Çalışanlar[Brüt\nMaaş],Makbuz),\"\")","v":35.28},null,"Federal Gelir Vergisi ",null,{"$f":"IFERROR(INDEX(Çalışanlar[Federal\nGelir Vergisi],Makbuz)  *  INDEX(Çalışanlar[Brüt\nMaaş],Makbuz),\"\")","v":156.80000000000001},null,"Tatil Süresi (Saat)",null,{"$f":"IFERROR(INDEX(Çalışanlar[Tatil Süresi (Saat)],Makbuz),\"\")","v":5}]
[null,null,"Sağlık Vergisi ",null,{"$f":"IFERROR(INDEX(Çalışanlar[Sağlık\nVergisi],Makbuz)  *  INDEX(Çalışanlar[Brüt\nMaaş],Makbuz),\"\")","v":8.120000000000001},null,"Eyalet Vergisi ",null,{"$f":"IFERROR(INDEX(Çalışanlar[Eyalet\nVergisi],Makbuz)  *  INDEX(Çalışanlar[Brüt\nMaaş],Makbuz),\"\")","v":12.879999999999999},null,"Fazla Mesai Saatleri",null,{"$f":"IFERROR(INDEX(Çalışanlar[Fazla Mesai Saatleri],Makbuz),\"\")","v":0}]
[null,null,"Sigorta Kesintisi",null,{"$f":"IFERROR(INDEX(Çalışanlar[Sigorta Kesintisi],Makbuz),\"\")","v":20},null,"Diğer Düzenli Kesinti",null,{"$f":"IFERROR(INDEX(Çalışanlar[Diğer Düzenli Kesinti],Makbuz),\"\")","v":40},null,"Brüt Maaş",null,{"$f":"IFERROR(INDEX(Çalışanlar[Brüt\nMaaş],Makbuz),\"\")","v":560}]
[null,null,"Toplam Vergiler ve",null,{"$f":"IFERROR(INDEX(Çalışanlar[Vergiler ve Kesintiler],Makbuz),\"\")","v":273.08000000000004},null,"Diğer Kesinti",null,{"$f":"IFERROR(INDEX(Çalışanlar[Diğer\nKesintiler],Makbuz),\"\")","v":20},null,"Toplam Vergiler ve Kesintiler ",null,{"$f":"IFERROR(INDEX(Çalışanlar[Vergiler ve Kesintiler],Makbuz)  +  INDEX(Çalışanlar[Diğer\nKesintiler],Makbuz),\"\")","v":293.08000000000004}]
[null,null,"Düzenli Kesintiler "]
[null,null,null,null,null,null,null,null,null,null,"NET MAAŞ",null,{"$f":"IFERROR(INDEX(Çalışanlar[Net Maaş],Makbuz),\"\")","v":266.91999999999996}]
[]
[]
[null,null,{"$f":"ŞirketAdı","v":"GÜZEL İŞLER"}]
[null,null,"DÖNEM",{"$f":"BitişDönemi","v":41372},null,null,"AD",{"$f":"IFERROR(INDEX(Çalışanlar[Çalışan Adı],Makbuz),\"\")","v":"Haluk Kocak"},null,null,"ÇALIŞAN KİMLİĞİ",{"$f":"IFERROR(INDEX(Çalışanlar[Kimlik],Makbuz),\"\")","v":1002}]
[null,null,"Vergi Durumu",null,{"$f":"IFERROR(INDEX(Çalışanlar[Vergi\nDurumu],Makbuz),\"\")","v":1},null,"Federal Ödenek (H-4'ten)",null,{"$f":"IFERROR(INDEX(Çalışanlar[Federal\nÖdenek],Makbuz),\"\")","v":1},null,"Çalıştığı Saatler",null,{"$f":"IFERROR(INDEX(Çalışanlar[Normal Çalıştığı Saatler],Makbuz),\"\")","v":40}]
[null,null,"Saat Ücreti",null,{"$f":"IFERROR(INDEX(Çalışanlar[Saat Ücreti],Makbuz),\"\")","v":8},null,"Fazla Mesai Ücreti",null,{"$f":"IFERROR(INDEX(Çalışanlar[Fazla Mesai Ücreti],Makbuz),\"\")","v":0},null,"Hastalık Süresi (Saat)",null,{"$f":"IFERROR(INDEX(Çalışanlar[Hastalık\nSüresi (Saat)],Makbuz),\"\")","v":0}]
[null,null,"Sosyal Güvenlik Vergisi",null,{"$f":"IFERROR(INDEX(Çalışanlar[Sosyal Güvenlik\nVergisi],Makbuz)  *  INDEX(Çalışanlar[Brüt\nMaaş],Makbuz),\"\")","v":20.16},null,"Federal Gelir Vergisi ",null,{"$f":"IFERROR(INDEX(Çalışanlar[Federal\nGelir Vergisi],Makbuz)  *  INDEX(Çalışanlar[Brüt\nMaaş],Makbuz),\"\")","v":89.600000000000009},null,"Tatil Süresi (Saat)",null,{"$f":"IFERROR(INDEX(Çalışanlar[Tatil Süresi (Saat)],Makbuz),\"\")","v":0}]
[null,null,"Sağlık Vergisi ",null,{"$f":"IFERROR(INDEX(Çalışanlar[Sağlık\nVergisi],Makbuz)  *  INDEX(Çalışanlar[Brüt\nMaaş],Makbuz),\"\")","v":4.6400000000000006},null,"Eyalet Vergisi ",null,{"$f":"IFERROR(INDEX(Çalışanlar[Eyalet\nVergisi],Makbuz)  *  INDEX(Çalışanlar[Brüt\nMaaş],Makbuz),\"\")","v":7.3599999999999994},null,"Fazla Mesai Saatleri",null,{"$f":"IFERROR(INDEX(Çalışanlar[Fazla Mesai Saatleri],Makbuz),\"\")","v":0}]
[null,null,"Sigorta Kesintisi",null,{"$f":"IFERROR(INDEX(Çalışanlar[Sigorta Kesintisi],Makbuz),\"\")","v":0},null,"Diğer Düzenli Kesinti",null,{"$f":"IFERROR(INDEX(Çalışanlar[Diğer Düzenli Kesinti],Makbuz),\"\")","v":10},null,"Brüt Maaş",null,{"$f":"IFERROR(INDEX(Çalışanlar[Brüt\nMaaş],Makbuz),\"\")","v":320}]
[null,null,"Toplam Vergiler ve",null,{"$f":"IFERROR(INDEX(Çalışanlar[Vergiler ve Kesintiler],Makbuz),\"\")","v":131.76000000000002},null,"Diğer Kesinti",null,{"$f":"IFERROR(INDEX(Çalışanlar[Diğer\nKesintiler],Makbuz),\"\")","v":0},null,"Toplam Vergiler ve Kesintiler ",null,{"$f":"IFERROR(INDEX(Çalışanlar[Vergiler ve Kesintiler],Makbuz)  +  INDEX(Çalışanlar[Diğer\nKesintiler],Makbuz),\"\")","v":131.76000000000002}]
[null,null,"Düzenli Kesintiler "]
[null,null,null,null,null,null,null,null,null,null,"NET MAAŞ",null,{"$f":"IFERROR(INDEX(Çalışanlar[Net Maaş],Makbuz),\"\")","v":188.23999999999998}]
[]
[]
[null,null,{"$f":"ŞirketAdı","v":"GÜZEL İŞLER"}]
[null,null,"DÖNEM",{"$f":"BitişDönemi","v":41372},null,null,"AD",{"$f":"IFERROR(INDEX(Çalışanlar[Çalışan Adı],Makbuz),\"\")","v":"Göktuğ Oğuz"},null,null,"ÇALIŞAN KİMLİĞİ",{"$f":"IFERROR(INDEX(Çalışanlar[Kimlik],Makbuz),\"\")","v":1003}]
[null,null,"Vergi Durumu",null,{"$f":"IFERROR(INDEX(Çalışanlar[Vergi\nDurumu],Makbuz),\"\")","v":1},null,"Federal Ödenek (H-4'ten)",null,{"$f":"IFERROR(INDEX(Çalışanlar[Federal\nÖdenek],Makbuz),\"\")","v":3},null,"Çalıştığı Saatler",null,{"$f":"IFERROR(INDEX(Çalışanlar[Normal Çalıştığı Saatler],Makbuz),\"\")","v":35}]
[null,null,"Saat Ücreti",null,{"$f":"IFERROR(INDEX(Çalışanlar[Saat Ücreti],Makbuz),\"\")","v":14},null,"Fazla Mesai Ücreti",null,{"$f":"IFERROR(INDEX(Çalışanlar[Fazla Mesai Ücreti],Makbuz),\"\")","v":0},null,"Hastalık Süresi (Saat)",null,{"$f":"IFERROR(INDEX(Çalışanlar[Hastalık\nSüresi (Saat)],Makbuz),\"\")","v":0}]
[null,null,"Sosyal Güvenlik Vergisi",null,{"$f":"IFERROR(INDEX(Çalışanlar[Sosyal Güvenlik\nVergisi],Makbuz)  *  INDEX(Çalışanlar[Brüt\nMaaş],Makbuz),\"\")","v":33.515999999999998},null,"Federal Gelir Vergisi ",null,{"$f":"IFERROR(INDEX(Çalışanlar[Federal\nGelir Vergisi],Makbuz)  *  INDEX(Çalışanlar[Brüt\nMaaş],Makbuz),\"\")","v":148.96},null,"Tatil Süresi (Saat)",null,{"$f":"IFERROR(INDEX(Çalışanlar[Tatil Süresi (Saat)],Makbuz),\"\")","v":3}]
[null,null,"Sağlık Vergisi ",null,{"$f":"IFERROR(INDEX(Çalışanlar[Sağlık\nVergisi],Makbuz)  *  INDEX(Çalışanlar[Brüt\nMaaş],Makbuz),\"\")","v":7.7140000000000004},null,"Eyalet Vergisi ",null,{"$f":"IFERROR(INDEX(Çalışanlar[Eyalet\nVergisi],Makbuz)  *  INDEX(Çalışanlar[Brüt\nMaaş],Makbuz),\"\")","v":12.236000000000001},null,"Fazla Mesai Saatleri",null,{"$f":"IFERROR(INDEX(Çalışanlar[Fazla Mesai Saatleri],Makbuz),\"\")","v":0}]
[null,null,"Sigorta Kesintisi",null,{"$f":"IFERROR(INDEX(Çalışanlar[Sigorta Kesintisi],Makbuz),\"\")","v":18},null,"Diğer Düzenli Kesinti",null,{"$f":"IFERROR(INDEX(Çalışanlar[Diğer Düzenli Kesinti],Makbuz),\"\")","v":20},null,"Brüt Maaş",null,{"$f":"IFERROR(INDEX(Çalışanlar[Brüt\nMaaş],Makbuz),\"\")","v":532}]
[null,null,"Toplam Vergiler ve",null,{"$f":"IFERROR(INDEX(Çalışanlar[Vergiler ve Kesintiler],Makbuz),\"\")","v":240.42600000000004},null,"Diğer Kesinti",null,{"$f":"IFERROR(INDEX(Çalışanlar[Diğer\nKesintiler],Makbuz),\"\")","v":0},null,"Toplam Vergiler ve Kesintiler ",null,{"$f":"IFERROR(INDEX(Çalışanlar[Vergiler ve Kesintiler],Makbuz)  +  INDEX(Çalışanlar[Diğer\nKesintiler],Makbuz),\"\")","v":240.42600000000004}]
[null,null,"Düzenli Kesintiler "]
[null,null,null,null,null,null,null,null,null,null,"NET MAAŞ",null,{"$f":"IFERROR(INDEX(Çalışanlar[Net Maaş],Makbuz),\"\")","v":291.57399999999996}]
[]
[]
[null,null,{"$f":"ŞirketAdı","v":"GÜZEL İŞLER"}]
[null,null,"DÖNEM",{"$f":"BitişDönemi","v":41372},null,null,"AD",{"$f":"IFERROR(INDEX(Çalışanlar[Çalışan Adı],Makbuz),\"\")","v":"Mete Göktepe"},null,null,"ÇALIŞAN KİMLİĞİ",{"$f":"IFERROR(INDEX(Çalışanlar[Kimlik],Makbuz),\"\")","v":1008}]
[null,null,"Vergi Durumu",null,{"$f":"IFERROR(INDEX(Çalışanlar[Vergi\nDurumu],Makbuz),\"\")","v":1},null,"Federal Ödenek (H-4'ten)",null,{"$f":"IFERROR(INDEX(Çalışanlar[Federal\nÖdenek],Makbuz),\"\")","v":0},null,"Çalıştığı Saatler",null,{"$f":"IFERROR(INDEX(Çalışanlar[Normal Çalıştığı Saatler],Makbuz),\"\")","v":50}]
[null,null,"Saat Ücreti",null,{"$f":"IFERROR(INDEX(Çalışanlar[Saat Ücreti],Makbuz),\"\")","v":20},null,"Fazla Mesai Ücreti",null,{"$f":"IFERROR(INDEX(Çalışanlar[Fazla Mesai Ücreti],Makbuz),\"\")","v":0},null,"Hastalık Süresi (Saat)",null,{"$f":"IFERROR(INDEX(Çalışanlar[Hastalık\nSüresi (Saat)],Makbuz),\"\")","v":1}]
[null,null,"Sosyal Güvenlik Vergisi",null,{"$f":"IFERROR(INDEX(Çalışanlar[Sosyal Güvenlik\nVergisi],Makbuz)  *  INDEX(Çalışanlar[Brüt\nMaaş],Makbuz),\"\")","v":70.56},null,"Federal Gelir Vergisi ",null,{"$f":"IFERROR(INDEX(Çalışanlar[Federal\nGelir Vergisi],Makbuz)  *  INDEX(Çalışanlar[Brüt\nMaaş],Makbuz),\"\")","v":313.60000000000002},null,"Tatil Süresi (Saat)",null,{"$f":"IFERROR(INDEX(Çalışanlar[Tatil Süresi (Saat)],Makbuz),\"\")","v":5}]
[null,null,"Sağlık Vergisi ",null,{"$f":"IFERROR(INDEX(Çalışanlar[Sağlık\nVergisi],Makbuz)  *  INDEX(Çalışanlar[Brüt\nMaaş],Makbuz),\"\")","v":16.240000000000002},null,"Eyalet Vergisi ",null,{"$f":"IFERROR(INDEX(Çalışanlar[Eyalet\nVergisi],Makbuz)  *  INDEX(Çalışanlar[Brüt\nMaaş],Makbuz),\"\")","v":25.759999999999998},null,"Fazla Mesai Saatleri",null,{"$f":"IFERROR(INDEX(Çalışanlar[Fazla Mesai Saatleri],Makbuz),\"\")","v":0}]
[null,null,"Sigorta Kesintisi",null,{"$f":"IFERROR(INDEX(Çalışanlar[Sigorta Kesintisi],Makbuz),\"\")","v":15},null,"Diğer Düzenli Kesinti",null,{"$f":"IFERROR(INDEX(Çalışanlar[Diğer Düzenli Kesinti],Makbuz),\"\")","v":0},null,"Brüt Maaş",null,{"$f":"IFERROR(INDEX(Çalışanlar[Brüt\nMaaş],Makbuz),\"\")","v":1120}]
[null,null,"Toplam Vergiler ve",null,{"$f":"IFERROR(INDEX(Çalışanlar[Vergiler ve Kesintiler],Makbuz),\"\")","v":441.16000000000008},null,"Diğer Kesinti",null,{"$f":"IFERROR(INDEX(Çalışanlar[Diğer\nKesintiler],Makbuz),\"\")","v":0},null,"Toplam Vergiler ve Kesintiler ",null,{"$f":"IFERROR(INDEX(Çalışanlar[Vergiler ve Kesintiler],Makbuz)  +  INDEX(Çalışanlar[Diğer\nKesintiler],Makbuz),\"\")","v":441.16000000000008}]
[null,null,"Düzenli Kesintiler "]
[null,null,null,null,null,null,null,null,null,null,"NET MAAŞ",null,{"$f":"IFERROR(INDEX(Çalışanlar[Net Maaş],Makbuz),\"\")","v":678.83999999999992}]